[Event "EWIBCC 2019"]
[Site "Monte-Carlo"]
[Date "2019.11.29"]
[Round "4.18"]
[White "Salimova, Nurgyul"]
[Black "Worek, Joanna"]
[Result "0-1"]
[ECO "B66"]
[WhiteElo "2370"]
[BlackElo "2316"]
[Annotator "NA"]
[PlyCount "62"]
[EventDate "2019.11.29"]
[EventType "swiss"]
[EventCountry "MNC"]
[SourceTitle "playchess.com"]
[Source "ChessBase"]
[SourceQuality "1"]
[TimeControl "180+2"]

1. e4 {[%emt 0:00:00]} c5 {[%emt 0:00:00]} 2. Nf3 {[%emt 0:00:00]} Nc6 {[%emt 0:00:00]} 3. d4 {[%emt 0:00:01]} cxd4 4. Nxd4 {[%emt 0:00:02]} Nf6 {[%emt 0:00:03]} 5. Nc3 {[%emt 0:00:02]} d6 {[%emt 0:00:01]} 6. Bg5 {[%emt 0:00:07]} e6 {[%emt 0:00:01]} 7. Qd2 {[%emt 0:00:01]} a6 {[%emt 0:00:08]} 8. O-O-O {[%emt 0:00:25]} h6 {[%emt 0:00:02]} 9. Nxc6 {[%emt 0:00:42]} bxc6 {[%emt 0:00:01]} 10. Bf4 {[%emt 0:00:05]} d5 {[%emt 0:00:01]} 11. Qe3 {[%emt 0:00:12]} Qa5 {[%emt 0:00:10]} 12. e5 {[%emt 0:01:07]} Nd7 {[%emt 0:00:04]} 13. a3 {[%emt 0:00:07]} Rb8 {[%emt 0:00:01]} 14. Be2 {[%emt 0:00:21]} Rxb2 {[%emt 0:01:07]} 15. Nxd5 {[%emt 0:00:01]} Bxa3 {[%emt 0:00:05]} 16. Nc7+ {[%emt 0:00:02]} Kf8 {[%emt 0:00:09]} 17. Nxe6+ {[%emt 0:00:08]} fxe6 {[%emt 0:01:41]} 18. Rd3 {[%emt 0:00:06]} Ra2+ {[%emt 0:00:00]} 19. Kb1 {[%emt 0:00:01]} Bc5 {[%emt 0:00:00]} 20. Qf3 {[%emt 0:00:05]} Ra1+ {[%emt 0:00:00]} 21. Kb2 {[%emt 0:00:01]} Qa2+ {[%emt 0:00:00]} 22. Kc3 {[%emt 0:00:01]} Qa3+ {[%emt 0:00:00]} 23. Kd2 {[%emt 0:00:01]} Qa5+ {[%emt 0:00:00]} 24. Rc3 {[%emt 0:00:03]} Rxh1 {[%emt 0:00:00]} 25. Be3+ {[%emt 0:00:01]} Kg8 {[%emt 0:00:00]} 26. Bxc5 {[%emt 0:00:01]} Nxc5 {[%emt 0:00:00]} 27. Qxc6 {[%emt 0:00:02]} Kh7 {[%emt 0:00:00]} 28. Bd3+ {[%emt 0:00:05]} Nxd3 {[%emt 0:00:00]} 29. Qe4+ {[%emt 0:00:01]} g6 {[%emt 0:00:00]} 30. Kxd3 {[%emt 0:00:03]} Rd8+ {[%emt 0:00:00]} 31. Kc4 {[%emt 0:00:01]} Qb5# {[%emt 0:00:03]} 0-1

[Event "EWIBCC 2019"]
[Site "Monte-Carlo"]
[Date "2019.11.29"]
[Round "4.20"]
[White "Unuk, Laura"]
[Black "Kazarian, Anna-Maja"]
[Result "0-1"]
[ECO "E08"]
[WhiteElo "2298"]
[BlackElo "2109"]
[Annotator "NA"]
[PlyCount "84"]
[EventDate "2019.11.29"]
[EventType "swiss"]
[EventCountry "MNC"]
[SourceTitle "playchess.com"]
[Source "ChessBase"]
[SourceQuality "1"]
[TimeControl "180+2"]

1. d4 {[%emt 0:00:00]} Nf6 {[%emt 0:00:00]} 2. Nf3 {[%emt 0:00:02]} d5 {[%emt 0:00:00]} 3. c4 {[%emt 0:00:01]} e6 {[%emt 0:00:01]} 4. g3 {[%emt 0:00:02]} Bb4+ {[%emt 0:00:01]} 5. Bd2 {[%emt 0:00:01]} Be7 {[%emt 0:00:01]} 6. Bg2 {[%emt 0:00:02]} O-O {[%emt 0:00:02]} 7. O-O {[%emt 0:00:02]} c6 {[%emt 0:00:01]} 8. Qc2 {[%emt 0:00:02]} b6 {[%emt 0:03:10]} 9. Bf4 {[%emt 0:00:02]} Bb7 {[%emt 0:00:00]} 10. Nc3 {[%emt 0:00:09]} Nbd7 {[%emt 0:00:00]} 11. b3 {[%emt 0:00:05]} Rc8 {[%emt 0:00:00]} 12. Rad1 {[%emt 0:00:05]} Ba6 {[%emt 0:00:00]} 13. Ne5 {[%emt 0:00:29]} Nxe5 {[%emt 0:00:00]} 14. dxe5 {[%emt 0:00:07]} Nd7 {[%emt 0:00:00]} 15. h4 {[%emt 0:00:11]} dxc4 {[%emt 0:00:00]} 16. bxc4 {[%emt 0:00:09]} Bxc4 {[%emt 0:00:00]} 17. Qa4 {[%emt 0:00:02]} b5 {[%emt 0:00:00]} 18. Qxa7 {[%emt 0:00:02]} Rc7 {[%emt 0:00:00]} 19. Qe3 {[%emt 0:00:30]} Qc8 {[%emt 0:00:00]} 20. Ne4 {[%emt 0:00:03]} Bxa2 {[%emt 0:00:00]} 21. h5 {[%emt 0:00:06]} Bd5 {[%emt 0:00:00]} 22. h6 {[%emt 0:00:02]} g6 {[%emt 0:00:00]} 23. Bg5 {[%emt 0:00:38]} Qd8 {[%emt 0:00:04]} 24. Bxe7 {[%emt 0:00:14]} Qxe7 {[%emt 0:00:01]} 25. Qf4 {[%emt 0:00:16]} f5 {[%emt 0:00:01]} 26. exf6 {[%emt 0:00:01]} Nxf6 {[%emt 0:00:01]} 27. Ng5 {[%emt 0:00:08]} Nh5 {[%emt 0:00:12]} 28. Qe3 {[%emt 0:00:04]} Rf5 {[%emt 0:00:06]} 29. Bxd5 {[%emt 0:00:10]} cxd5 {[%emt 0:00:04]} 30. Nxe6 {[%emt 0:00:02]} Rc6 {[%emt 0:00:05]} 31. Nd4 {[%emt 0:00:02]} Qxe3 {[%emt 0:00:01]} 32. fxe3 {[%emt 0:00:02]} Rxf1+ {[%emt 0:00:01]} 33. Rxf1 {[%emt 0:00:02]} Rb6 {[%emt 0:00:07]} 34. Kg2 {[%emt 0:00:01]} b4 {[%emt 0:00:00]} 35. g4 {[%emt 0:00:03]} Nf6 {[%emt 0:00:01]} 36. g5 {[%emt 0:00:01]} Ne4 {[%emt 0:00:01]} 37. Rc1 {[%emt 0:00:12]} Nxg5 {[%emt 0:00:04]} 38. Rc7 {[%emt 0:00:02]} b3 {[%emt 0:00:06]} 39. Rg7+ {[%emt 0:00:01]} Kf8 {[%emt 0:00:01]} 40. Rc7 {[%emt 0:00:03]} b2 {[%emt 0:00:01]} 41. Rc8+ {[%emt 0:00:01]} Ke7 {[%emt 0:00:01]} 42. Rc7+ {[%emt 0:00:03]} Kd6 {[%emt 0:00:02]} 0-1

[Event "EWIBCC 2019"]
[Site "Monte-Carlo"]
[Date "2019.11.29"]
[Round "5.3"]
[White "Zhukova, Natalia"]
[Black "Bodnaruk, Anastasia"]
[Result "0-1"]
[ECO "A21"]
[WhiteElo "2323"]
[BlackElo "2412"]
[Annotator "NA"]
[PlyCount "96"]
[EventDate "2019.11.29"]
[EventType "swiss"]
[EventCountry "MNC"]
[SourceTitle "playchess.com"]
[Source "ChessBase"]
[SourceQuality "1"]
[TimeControl "180+2"]

1. c4 {[%emt 0:00:00]} e5 {[%emt 0:00:00]} 2. Nc3 {[%emt 0:00:00]} d6 {[%emt 0:00:00]} 3. Nf3 {[%emt 0:00:01]} f5 {[%emt 0:00:11]} 4. g3 {[%emt 0:00:08]} g6 {[%emt 0:00:16]} 5. d4 {[%emt 0:00:03]} e4 {[%emt 0:00:11]} 6. Ng5 {[%emt 0:00:23]} Bg7 {[%emt 0:00:04]} 7. Bg2 {[%emt 0:00:03]} Nc6 {[%emt 0:00:20]} 8. d5 {[%emt 0:00:15]} Ne5 {[%emt 0:00:02]} 9. O-O {[%emt 0:00:09]} Nf6 {[%emt 0:00:13]} 10. f3 {[%emt 0:00:18]} exf3 {[%emt 0:00:13]} 11. exf3 {[%emt 0:00:01]} O-O {[%emt 0:00:01]} 12. Qb3 {[%emt 0:00:04]} Re8 {[%emt 0:00:47]} 13. Bd2 {[%emt 0:00:02]} Bd7 {[%emt 0:00:17]} 14. Rae1 {[%emt 0:00:03]} h6 {[%emt 0:00:25]} 15. Ne6 {[%emt 0:00:02]} Bxe6 {[%emt 0:00:07]} 16. dxe6 {[%emt 0:00:01]} Rb8 {[%emt 0:00:10]} 17. c5 {[%emt 0:00:19]} Kh7 {[%emt 0:00:00]} 18. cxd6 {[%emt 0:00:03]} cxd6 {[%emt 0:00:01]} 19. Kh1 {[%emt 0:00:40]} Nc6 {[%emt 0:00:06]} 20. Be3 {[%emt 0:00:05]} d5 {[%emt 0:00:06]} 21. Bf4 {[%emt 0:00:06]} Rc8 {[%emt 0:00:01]} 22. Qxb7 {[%emt 0:00:02]} d4 {[%emt 0:00:07]} 23. Nb5 {[%emt 0:00:01]} d3 {[%emt 0:00:02]} 24. Nd6 {[%emt 0:00:02]} Nd4 {[%emt 0:00:03]} 25. Nxc8 {[%emt 0:00:04]} Qxc8 {[%emt 0:00:01]} 26. Qxc8 {[%emt 0:00:02]} Rxc8 {[%emt 0:00:01]} 27. Rd1 {[%emt 0:00:02]} Nxe6 {[%emt 0:00:01]} 28. Rxd3 {[%emt 0:00:03]} Nxf4 {[%emt 0:00:01]} 29. gxf4 {[%emt 0:00:01]} Rc4 {[%emt 0:00:02]} 30. Re1 {[%emt 0:00:05]} Rxf4 {[%emt 0:00:05]} 31. Re7 {[%emt 0:00:02]} Rc4 {[%emt 0:00:01]} 32. Kg1 {[%emt 0:00:10]} h5 {[%emt 0:00:01]} 33. Rb3 {[%emt 0:00:23]} Kh6 {[%emt 0:00:05]} 34. Kf1 {[%emt 0:00:08]} Nd5 {[%emt 0:00:02]} 35. Rxa7 {[%emt 0:00:04]} Rc1+ {[%emt 0:00:02]} 36. Ke2 {[%emt 0:00:03]} Nf4+ {[%emt 0:00:00]} 37. Kd2 {[%emt 0:00:01]} Rg1 {[%emt 0:00:02]} 38. Rbb7 {[%emt 0:00:04]} Rxg2+ {[%emt 0:00:02]} 39. Ke3 {[%emt 0:00:05]} Ne6 {[%emt 0:00:02]} 40. h4 {[%emt 0:00:02]} Bd4+ {[%emt 0:00:01]} 41. Kd3 {[%emt 0:00:02]} Bxa7 {[%emt 0:00:01]} 42. Rxa7 {[%emt 0:00:00]} Rxb2 {[%emt 0:00:01]} 43. a4 {[%emt 0:00:03]} Rb4 {[%emt 0:00:03]} 44. a5 {[%emt 0:00:03]} Rxh4 {[%emt 0:00:01]} 45. a6 {[%emt 0:00:01]} Ra4 {[%emt 0:00:01]} 46. Ra8 {[%emt 0:00:04]} Rxa6 {[%emt 0:00:13]} 47. Rxa6 {[%emt 0:00:02]} Nc5+ {[%emt 0:00:00]} 48. Kd4 {[%emt 0:00:01]} Nxa6 {[%emt 0:00:00]} 0-1

[Event "EWIBCC 2019"]
[Site "Monte-Carlo"]
[Date "2019.11.29"]
[Round "5.4"]
[White "Chiburdanidze, Maia"]
[Black "Berend, Elvira"]
[Result "1-0"]
[ECO "D05"]
[WhiteElo "2500"]
[BlackElo "2349"]
[Annotator "RC"]
[PlyCount "97"]
[EventDate "2019.11.29"]
[EventType "swiss"]
[EventCountry "MNC"]
[SourceTitle "playchess.com"]
[Source "ChessBase"]
[SourceQuality "1"]
[TimeControl "180+2"]

1. d4 {[%emt 0:00:00]} Nf6 {[%emt 0:00:00]} 2. Nf3 {[%emt 0:00:00]} e6 {[%emt 0:00:01]} 3. e3 {[%emt 0:00:02]} c5 {[%emt 0:00:01]} 4. Bd3 {[%emt 0:00:03]} b6 {[%emt 0:00:02]} 5. O-O {[%emt 0:00:03]} Bb7 {[%emt 0:00:01]} 6. b3 {[%emt 0:00:01]} Be7 {[%emt 0:00:06]} 7. Bb2 {[%emt 0:00:02]} O-O {[%emt 0:00:04]} 8. Qe2 {[%emt 0:00:01]} d5 {[%emt 0:00:09]} 9. Nbd2 {[%emt 0:00:03]} Nc6 {[%emt 0:00:01]} 10. a3 {[%emt 0:00:01]} a6 {[%emt 0:00:06]} 11. Rfd1 {[%emt 0:00:10]} Qc7 {[%emt 0:00:03]} 12. Ne5 {[%emt 0:00:05]} Nxe5 {[%emt 0:00:19]} 13. dxe5 {[%emt 0:00:02]} Nd7 {[%emt 0:00:00]} 14. f4 {[%emt 0:00:12]} b5 {[%emt 0:00:20]} 15. c4 {[%emt 0:00:02]} bxc4 {[%emt 0:00:10]} 16. bxc4 {[%emt 0:00:01]} Nb6 {[%emt 0:00:10]} 17. Rac1 {[%emt 0:00:05]} f5 {[%emt 0:00:11]} 18. cxd5 {[%emt 0:01:07]} exd5 {[%emt 0:00:05]} 19. Bb1 {[%emt 0:00:01]} Rac8 {[%emt 0:00:19]} 20. Ba1 {[%emt 0:00:11]} Qc6 {[%emt 0:00:06]} 21. Nb3 {[%emt 0:00:05]} Qb5 {[%emt 0:00:07]} 22. Qa2 {[%emt 0:00:13]} Kh8 {[%emt 0:00:05]} 23. Bd3 {[%emt 0:00:12]} c4 {[%emt 0:00:02]} 24. Nd4 {[%emt 0:00:02]} Qd7 {[%emt 0:00:05]} 25. Bxf5 {[%emt 0:00:11]} Qe8 {[%emt 0:00:20]} 26. Qb1 {[%emt 0:00:08]} Bc5 {[%emt 0:00:12]} 27. Bxh7 {[%emt 0:00:08]} Rb8 {[%emt 0:00:15]} 28. Bg6 {[%emt 0:00:04]} Qe7 {[%emt 0:00:04]} 29. Qc2 {[%emt 0:00:03]} Bc8 {[%emt 0:00:02]} 30. Qe2 {[%emt 0:00:03]} Qh4 {[%emt 0:00:11]} 31. f5 {[%emt 0:00:10]} Qg5 {[%emt 0:00:08]} 32. e6 {[%emt 0:00:03]} Bxd4 {[%emt 0:00:04]} 33. Rxd4 {[%emt 0:00:02]} Bxe6 {[%emt 0:00:01]} 34. Rg4 {[%emt 0:00:10]} Qh6 {[%emt 0:00:06]} 35. fxe6 {[%emt 0:00:02]} d4 {[%emt 0:00:03]} 36. Bxd4 {[%emt 0:00:02]} Nd5 {[%emt 0:00:00]} 37. Be4 {[%emt 0:00:04]} Nf6 {[%emt 0:00:03]} 38. Rg3 {[%emt 0:00:06]} Nxe4 {[%emt 0:00:04]} 39. Rh3 {[%emt 0:00:01]} Qxh3 40. gxh3 {[%emt 0:00:01]} Rbe8 {[%emt 0:00:05]} 41. Qg4 {[%emt 0:00:02]} Nf6 {[%emt 0:00:01]} 42. Bxf6 {[%emt 0:00:05]} Rxf6 {[%emt 0:00:01]} 43. Rxc4 {[%emt 0:00:01]} Rfxe6 {[%emt 0:00:00]} 44. Rc8 {[%emt 0:00:03]} Rxc8 {[%emt 0:00:15]} 45. Qxe6 {[%emt 0:00:01]} Rc1+ {[%emt 0:00:00]} 46. Kf2 {[%emt 0:00:01]} Rc2+ {[%emt 0:00:00]} 47. Kg3 {[%emt 0:00:01]} Rc3 {[%emt 0:00:00]} 48. Qxa6 {[%emt 0:00:03]} Rxe3+ {[%emt 0:00:00]} 49. Kg4 {[%emt 0:00:01]} 1-0

[Event "EWIBCC 2019"]
[Site "Monte-Carlo"]
[Date "2019.11.29"]
[Round "5.6"]
[White "Dornbusch, Tatiana"]
[Black "Michna, Marta"]
[Result "0-1"]
[ECO "A55"]
[WhiteElo "2269"]
[BlackElo "2366"]
[Annotator "NA"]
[PlyCount "136"]
[EventDate "2019.11.29"]
[EventType "swiss"]
[EventCountry "MNC"]
[SourceTitle "playchess.com"]
[Source "ChessBase"]
[SourceQuality "1"]
[TimeControl "180+2"]

1. d4 {[%emt 0:00:00]} Nf6 {[%emt 0:00:00]} 2. Nf3 {[%emt 0:00:01]} d6 {[%emt 0:00:00]} 3. g3 {[%emt 0:00:02]} Nbd7 {[%emt 0:00:02]} 4. Bg2 {[%emt 0:00:02]} e5 {[%emt 0:00:01]} 5. c4 {[%emt 0:00:13]} Be7 {[%emt 0:00:02]} 6. O-O {[%emt 0:00:06]} O-O {[%emt 0:00:02]} 7. Nc3 {[%emt 0:00:01]} c6 {[%emt 0:00:03]} 8. e4 {[%emt 0:00:11]} Qc7 {[%emt 0:00:02]} 9. h3 {[%emt 0:00:03]} Re8 {[%emt 0:00:01]} 10. Be3 {[%emt 0:00:07]} Bf8 {[%emt 0:00:08]} 11. d5 {[%emt 0:00:31]} a6 {[%emt 0:00:14]} 12. Rc1 {[%emt 0:00:11]} c5 {[%emt 0:00:09]} 13. Nh4 {[%emt 0:00:09]} g6 {[%emt 0:00:04]} 14. f4 {[%emt 0:00:03]} exf4 {[%emt 0:00:07]} 15. gxf4 {[%emt 0:00:02]} Bg7 {[%emt 0:00:06]} 16. Qc2 {[%emt 0:00:31]} Nh5 {[%emt 0:00:27]} 17. Nf3 {[%emt 0:00:01]} Qd8 {[%emt 0:00:06]} 18. Kh2 {[%emt 0:00:04]} Rb8 {[%emt 0:00:04]} 19. a4 {[%emt 0:00:07]} b6 {[%emt 0:00:09]} 20. Qd3 {[%emt 0:00:17]} Nf8 {[%emt 0:00:21]} 21. Bd2 {[%emt 0:00:03]} f5 {[%emt 0:00:33]} 22. e5 {[%emt 0:00:07]} dxe5 {[%emt 0:00:01]} 23. fxe5 {[%emt 0:00:01]} Rxe5 {[%emt 0:00:01]} 24. Nxe5 Bxe5+ {[%emt 0:00:01]} 25. Kg1 {[%emt 0:00:07]} Qd6 {[%emt 0:00:12]} 26. Ne2 {[%emt 0:00:01]} Bd7 {[%emt 0:00:05]} 27. b3 {[%emt 0:00:04]} Re8 {[%emt 0:00:03]} 28. Bf3 {[%emt 0:00:02]} Bd4+ {[%emt 0:00:11]} 29. Nxd4 {[%emt 0:00:03]} Qg3+ {[%emt 0:00:01]} 30. Kh1 {[%emt 0:00:06]} Qxh3+ {[%emt 0:00:04]} 31. Kg1 {[%emt 0:00:00]} Qg3+ {[%emt 0:00:02]} 32. Kh1 {[%emt 0:00:01]} Qh3+ {[%emt 0:00:11]} 33. Kg1 {[%emt 0:00:01]} cxd4 {[%emt 0:00:10]} 34. Rf2 {[%emt 0:00:01]} f4 {[%emt 0:00:06]} 35. Qxd4 {[%emt 0:00:07]} Ng3 {[%emt 0:00:01]} 36. Rh2 {[%emt 0:00:04]} Qf5 {[%emt 0:00:01]} 37. Qxf4 {[%emt 0:00:04]} Qxf4 {[%emt 0:00:02]} 38. Bxf4 {[%emt 0:00:01]} Nf5 {[%emt 0:00:02]} 39. Re2 {[%emt 0:00:05]} Rc8 {[%emt 0:00:05]} 40. Be5 {[%emt 0:00:02]} Nh4 {[%emt 0:00:03]} 41. Be4 {[%emt 0:00:03]} Bg4 {[%emt 0:00:01]} 42. Rf2 {[%emt 0:00:03]} Nd7 {[%emt 0:00:02]} 43. Bd4 {[%emt 0:00:03]} Re8 {[%emt 0:00:00]} 44. Re1 {[%emt 0:00:03]} Nf3+ {[%emt 0:00:01]} 45. Rxf3 {[%emt 0:00:07]} Bxf3 {[%emt 0:00:01]} 46. Bxf3 {[%emt 0:00:01]} Rxe1+ {[%emt 0:00:01]} 47. Kf2 {[%emt 0:00:00]} Rb1 {[%emt 0:00:01]} 48. Bg4 {[%emt 0:00:03]} Nf8 {[%emt 0:00:01]} 49. Bxb6 {[%emt 0:00:02]} Rxb3 {[%emt 0:00:01]} 50. a5 {[%emt 0:00:01]} Rb4 {[%emt 0:00:02]} 51. Be2 {[%emt 0:00:01]} Rb2 {[%emt 0:00:01]} 52. d6 {[%emt 0:00:02]} Kf7 {[%emt 0:00:01]} 53. d7 {[%emt 0:00:02]} Nxd7 {[%emt 0:00:01]} 54. c5 {[%emt 0:00:01]} Ke6 {[%emt 0:00:07]} 55. Ke3 {[%emt 0:00:01]} Nxb6 {[%emt 0:00:05]} 56. cxb6 {[%emt 0:00:01]} Kd7 {[%emt 0:00:02]} 57. Bxa6 {[%emt 0:00:01]} Ra2 {[%emt 0:00:01]} 58. Bb5+ {[%emt 0:00:02]} Kc8 {[%emt 0:00:00]} 59. a6 {[%emt 0:00:00]} Ra5 {[%emt 0:00:04]} 60. a7 {[%emt 0:00:02]} Kb7 {[%emt 0:00:01]} 61. Bc4 {[%emt 0:00:16]} Kxb6 {[%emt 0:00:01]} 62. Bg8 {[%emt 0:00:03]} Rxa7 {[%emt 0:00:00]} 63. Kf4 {[%emt 0:00:02]} h6 {[%emt 0:00:04]} 64. Kg4 {[%emt 0:00:03]} Ra4+ {[%emt 0:00:01]} 65. Kg3 {[%emt 0:00:01]} Kc5 {[%emt 0:00:00]} 66. Bf7 {[%emt 0:00:02]} Ra6 {[%emt 0:00:01]} 67. Kg4 {[%emt 0:00:26]} Kd4 68. Kh4 {[%emt 0:00:00]} Ke5 {[%emt 0:00:00]} 0-1

[Event "EWIBCC 2019"]
[Site "Monte-Carlo"]
[Date "2019.11.29"]
[Round "5.8"]
[White "Benmesbah, Natacha"]
[Black "Buksa, Nataliya"]
[Result "0-1"]
[ECO "B31"]
[WhiteElo "2265"]
[BlackElo "2410"]
[Annotator "NA"]
[PlyCount "60"]
[EventDate "2019.11.29"]
[EventType "swiss"]
[EventCountry "MNC"]
[SourceTitle "playchess.com"]
[Source "ChessBase"]
[SourceQuality "1"]
[TimeControl "180+2"]

1. e4 {[%emt 0:00:00]} c5 {[%emt 0:00:00]} 2. Nf3 {[%emt 0:00:00]} Nc6 {[%emt 0:00:00]} 3. Bb5 {[%emt 0:00:01]} g6 {[%emt 0:00:00]} 4. Bxc6 {[%emt 0:00:01]} dxc6 {[%emt 0:00:00]} 5. d3 {[%emt 0:00:03]} Bg7 {[%emt 0:00:00]} 6. h3 {[%emt 0:00:03]} Nf6 {[%emt 0:00:01]} 7. Nc3 {[%emt 0:00:12]} Nd7 {[%emt 0:00:01]} 8. O-O {[%emt 0:00:05]} e5 {[%emt 0:00:03]} 9. Be3 {[%emt 0:00:39]} b6 {[%emt 0:00:01]} 10. Qd2 {[%emt 0:00:04]} Nf8 {[%emt 0:00:01]} 11. a3 {[%emt 0:00:16]} Ne6 {[%emt 0:00:18]} 12. b4 {[%emt 0:00:01]} Nd4 {[%emt 0:00:17]} 13. Nh2 {[%emt 0:00:11]} Be6 {[%emt 0:00:07]} 14. bxc5 {[%emt 0:00:11]} bxc5 {[%emt 0:00:01]} 15. Rab1 {[%emt 0:00:13]} O-O {[%emt 0:00:02]} 16. Na4 {[%emt 0:00:23]} Qe7 {[%emt 0:00:06]} 17. c3 {[%emt 0:00:04]} Nb3 {[%emt 0:00:13]} 18. Rxb3 {[%emt 0:00:01]} Bxb3 {[%emt 0:02:25]} 19. Bxc5 {[%emt 0:00:03]} Qe8 {[%emt 0:00:00]} 20. Nb2 {[%emt 0:00:03]} Qd8 {[%emt 0:00:00]} 21. Bxf8 {[%emt 0:00:03]} Bxf8 {[%emt 0:00:00]} 22. c4 {[%emt 0:01:07]} Qd6 {[%emt 0:00:00]} 23. a4 {[%emt 0:00:00]} Qb4 {[%emt 0:00:00]} 24. Nf3 {[%emt 0:00:00]} f6 {[%emt 0:00:00]} 25. Rb1 {[%emt 0:00:00]} Rb8 {[%emt 0:00:00]} 26. Nd1 {[%emt 0:00:00]} Qxa4 {[%emt 0:00:00]} 27. Nc3 {[%emt 0:00:00]} Qa5 {[%emt 0:00:00]} 28. Nd1 {[%emt 0:00:01]} Qc7 {[%emt 0:00:00]} 29. Qb2 {[%emt 0:00:06]} Bd6 {[%emt 0:00:00]} 30. Nd2 {[%emt 0:00:03]} Bxd1 {[%emt 0:00:00]} 0-1

[Event "EWIBCC 2019"]
[Site "Monte-Carlo"]
[Date "2019.11.29"]
[Round "5.9"]
[White "Guichard, Pauline"]
[Black "Daulyte-Cornette, Deimante"]
[Result "1-0"]
[ECO "A10"]
[WhiteElo "2407"]
[BlackElo "2405"]
[Annotator "RC"]
[PlyCount "78"]
[EventDate "2019.11.29"]
[EventType "swiss"]
[EventCountry "MNC"]
[SourceTitle "playchess.com"]
[Source "ChessBase"]
[SourceQuality "1"]
[TimeControl "180+2"]

1. c4 {[%emt 0:00:00]} b6 {[%emt 0:00:00]} 2. e4 {[%emt 0:00:05]} Bb7 {[%emt 0:00:03]} 3. Nc3 {[%emt 0:00:01]} e5 {[%emt 0:00:02]} 4. g3 {[%emt 0:00:09]} f5 {[%emt 0:00:02]} 5. d3 {[%emt 0:00:06]} Nf6 {[%emt 0:00:09]} 6. Bg2 {[%emt 0:00:03]} Bc5 {[%emt 0:00:04]} 7. Nge2 {[%emt 0:00:12]} O-O {[%emt 0:00:08]} 8. O-O {[%emt 0:00:04]} fxe4 {[%emt 0:00:04]} 9. Nxe4 {[%emt 0:00:21]} Nxe4 {[%emt 0:00:06]} 10. dxe4 {[%emt 0:00:09]} Nc6 {[%emt 0:00:22]} 11. Bd2 {[%emt 0:00:25]} Rf7 {[%emt 0:00:07]} 12. Nc3 {[%emt 0:00:22]} Qf8 {[%emt 0:00:07]} 13. Qe1 {[%emt 0:00:27]} Nd4 {[%emt 0:00:55]} 14. Rc1 {[%emt 0:00:01]} Nf3+ {[%emt 0:00:12]} 15. Bxf3 {[%emt 0:00:02]} Rxf3 {[%emt 0:00:01]} 16. Nd5 {[%emt 0:00:11]} Bxd5 {[%emt 0:00:03]} 17. cxd5 {[%emt 0:00:08]} a5 {[%emt 0:00:17]} 18. a3 {[%emt 0:00:07]} a4 {[%emt 0:00:06]} 19. Bb4 {[%emt 0:00:01]} d6 {[%emt 0:00:10]} 20. Bxc5 {[%emt 0:00:04]} bxc5 {[%emt 0:00:01]} 21. Rc3 {[%emt 0:00:14]} Rb8 {[%emt 0:00:03]} 22. Qc1 {[%emt 0:00:05]} Rb3 {[%emt 0:00:07]} 23. Rxf3 {[%emt 0:00:04]} Qxf3 {[%emt 0:00:02]} 24. Qc4 {[%emt 0:00:01]} Rxb2 {[%emt 0:00:19]} 25. Qxa4 {[%emt 0:00:02]} h6 {[%emt 0:00:03]} 26. h4 {[%emt 0:00:21]} Kh7 {[%emt 0:00:03]} 27. Qd7 {[%emt 0:00:05]} Ra2 {[%emt 0:00:06]} 28. Qxc7 {[%emt 0:00:01]} Qxe4 {[%emt 0:00:06]} 29. Qxd6 {[%emt 0:00:02]} c4 {[%emt 0:00:01]} 30. Qc5 {[%emt 0:00:02]} Qd3 {[%emt 0:00:04]} 31. d6 {[%emt 0:00:02]} Rd2 {[%emt 0:00:01]} 32. Qxe5 {[%emt 0:00:01]} Qxd6 {[%emt 0:00:01]} 33. Qf5+ {[%emt 0:00:02]} Qg6 {[%emt 0:00:03]} 34. Qxg6+ Kxg6 {[%emt 0:00:01]} 35. Rc1 {[%emt 0:00:03]} Rd4 {[%emt 0:00:02]} 36. a4 {[%emt 0:00:02]} Kf5 {[%emt 0:00:01]} 37. a5 {[%emt 0:00:00]} Ke4 {[%emt 0:00:01]} 38. a6 {[%emt 0:00:02]} Rd6 {[%emt 0:00:10]} 39. Re1+ {[%emt 0:00:02]} Kf5 {[%emt 0:00:05]} 1-0

[Event "EWIBCC 2019"]
[Site "Monte-Carlo"]
[Date "2019.11.29"]
[Round "5.10"]
[White "Worek, Joanna"]
[Black "Bulmaga, Irina"]
[Result "0-1"]
[ECO "C45"]
[WhiteElo "2316"]
[BlackElo "2435"]
[Annotator "NA"]
[PlyCount "44"]
[EventDate "2019.11.29"]
[EventType "swiss"]
[EventCountry "MNC"]
[SourceTitle "playchess.com"]
[Source "ChessBase"]
[SourceQuality "1"]
[TimeControl "180+2"]

1. e4 {[%emt 0:00:00]} e5 {[%emt 0:00:00]} 2. Nf3 {[%emt 0:00:00]} Nc6 {[%emt 0:00:01]} 3. d4 {[%emt 0:00:01]} exd4 {[%emt 0:00:01]} 4. Nxd4 {[%emt 0:00:01]} Nf6 {[%emt 0:00:01]} 5. Nxc6 {[%emt 0:00:08]} bxc6 {[%emt 0:00:02]} 6. Qe2 {[%emt 0:00:03]} Bc5 {[%emt 0:00:08]} 7. Nc3 {[%emt 0:00:08]} O-O {[%emt 0:00:12]} 8. Bg5 {[%emt 0:00:02]} h6 {[%emt 0:00:04]} 9. Bh4 {[%emt 0:00:02]} Re8 {[%emt 0:00:10]} 10. O-O-O {[%emt 0:00:03]} d6 {[%emt 0:00:15]} 11. f3 {[%emt 0:00:16]} a5 {[%emt 0:00:05]} 12. g4 {[%emt 0:00:05]} Rb8 {[%emt 0:00:19]} 13. Kb1 {[%emt 0:00:41]} Qe7 {[%emt 0:00:17]} 14. Bg3 {[%emt 0:00:28]} Nd7 {[%emt 0:00:17]} 15. h4 {[%emt 0:00:01]} Ne5 {[%emt 0:00:02]} 16. g5 {[%emt 0:00:04]} h5 {[%emt 0:00:04]} 17. Na4 {[%emt 0:00:42]} Bb4 {[%emt 0:00:35]} 18. Qe3 {[%emt 0:00:18]} c5 {[%emt 0:00:19]} 19. Bxe5 {[%emt 0:00:04]} Qxe5 {[%emt 0:00:11]} 20. Rd5 {[%emt 0:00:02]} Qxd5 {[%emt 0:00:03]} 21. Bd3 {[%emt 0:00:14]} Qd4 {[%emt 0:00:04]} 22. Qf4 {[%emt 0:00:03]} Ba3 {[%emt 0:00:08]} 0-1

[Event "EWIBCC 2019"]
[Site "Monte-Carlo"]
[Date "2019.11.29"]
[Round "5.11"]
[White "Babiy, Olga"]
[Black "Mkrtchian, Lilit"]
[Result "1-0"]
[ECO "C17"]
[WhiteElo "2249"]
[BlackElo "2402"]
[Annotator "NA"]
[PlyCount "24"]
[EventDate "2019.11.29"]
[EventType "swiss"]
[EventCountry "MNC"]
[SourceTitle "playchess.com"]
[Source "ChessBase"]
[SourceQuality "1"]
[TimeControl "180+2"]

1. e4 {[%emt 0:00:00]} e6 {[%emt 0:00:00]} 2. d4 {[%emt 0:00:00]} d5 {[%emt 0:00:00]} 3. Nc3 {[%emt 0:00:00]} Bb4 {[%emt 0:00:02]} 4. e5 {[%emt 0:00:02]} c5 {[%emt 0:00:03]} 5. Bd2 {[%emt 0:00:03]} Nh6 {[%emt 0:00:02]} 6. dxc5 {[%emt 0:00:15]} Bxc5 {[%emt 0:00:16]} 7. Bd3 {[%emt 0:00:10]} Nc6 {[%emt 0:00:10]} 8. f4 {[%emt 0:00:02]} a6 {[%emt 0:00:56]} 9. Nf3 {[%emt 0:00:04]} Ng4 {[%emt 0:00:04]} 10. Qe2 {[%emt 0:00:24]} Nf2 {[%emt 0:00:12]} 11. Rf1 {[%emt 0:00:03]} Nxd3+ {[%emt 0:00:02]} 12. cxd3 {[%emt 0:00:17]} Bd7 {[%emt 0:00:04]} 1-0